fUST/lending_fUST_20250411
["ID","MTS","AMOUNT","RATE_DAILY","PERIOD"]
[357677256,1744308661100,-253.18533154,0.00016986,2]
[357677257,1744308661109,-531.9,0.00016986,2]
[357677258,1744308661119,-500.0,0.00016986,2]
[357677259,1744308661129,-1424.48,0.00016986,2]
[357677260,1744308661138,-500.0,0.00016986,2]
[357677261,1744308661149,-500.0,0.00016986,2]
[357677262,1744308661159,-500.0,0.00016986,2]
[357677263,1744308661168,-500.0,0.00016986,2]
[357677264,1744308661178,-4216.8841797,0.00016986,2]
[357677265,1744308662404,2804.76038504,0.00014952,2]
[357677266,1744308662470,161.44955088,0.0001505,2]
[357677267,1744308669578,199.29166671,0.00014951,2]
[357677268,1744308673601,753.09705082,0.00014952,2]
[357677269,1744308683809,-210.69165395,0.00015049,2]
[357677270,1744308685591,-89.30834605,0.00015049,2]
[357677271,1744308685614,-28.23083616,0.0001505,2]
[357677272,1744308685637,-182.46081779,0.0001505,2]
[357677273,1744308688675,250.0,0.00014951,2]
[357677274,1744308723156,-159.1779977,0.00015049,2]
[357677275,1744308820523,381.14,0.00010959,2]
[357677276,1744308832323,250.0,0.00014949,2]
[357677277,1744308841912,317.62,0.00010959,2]
[357677278,1744308852460,264.68,0.00010959,2]
[357677279,1744308863143,220.57,0.00010959,2]
[357677280,1744308873809,183.8,0.00010959,2]
[357677281,1744308884347,153.17,0.00010959,2]
[357677282,1744308895091,765.88,0.00010959,2]
[357677283,1744308962592,426.4140796,0.00014648,2]
[357677284,1744308977021,250.0,0.00014948,2]
[357677285,1744308988289,1066.45939239,0.00014948,2]
[357677286,1744308998114,162.669405,0.00014166,2]
[357677287,1744308998346,162.669405,0.00014183,2]
[357677288,1744308998585,162.669405,0.00014201,2]
[357677289,1744308998642,254.96069386,0.0001495,2]
[357677290,1744308998828,155.86981566,0.00014219,2]
[357677291,1744308998856,6.79958934,0.00014219,2]
[357677292,1744308999056,162.669405,0.00014236,2]
[357677293,1744309034424,708.6594955,0.0001463,2]
[357677295,1744309113429,250.0,0.00014946,2]
[357677296,1744309135550,505.555958,0.00014166,2]
[357677297,1744309178312,933.15196835,0.00014946,2]
[357677298,1744309235889,250.0,0.00014946,2]
[357677300,1744309263019,-300.0,0.00015044,2]
[357677301,1744309339604,203.96855508,0.00014945,2]
[357677302,1744309369771,816.50797228,0.00014944,2]
[357677303,1744309379713,250.0,0.00014945,2]
[357677304,1744309383184,-159.17044552,0.00015043,2]
[357677305,1744309444669,-177.33447168,0.00015043,2]
[357677306,1744309458043,250.0,0.00014709,2]
[357677307,1744309523164,250.0,0.00014943,2]
[357677310,1744309544628,11316.2236586,0.00014166,2]
[357677311,1744309552849,9460.0369173,0.00014166,2]
[357677313,1744309560044,714.44447571,0.00014943,2]
[357677317,1744309617341,3434.01228665,0.00015,2]
[357677340,1744309653936,-196.22342467,0.00015042,2]
[357677341,1744309667216,250.0,0.00014942,2]
[357677342,1744309674488,339.323339,0.00014618,2]
[357677348,1744309681934,163.17484408,0.00014944,2]
[357677352,1744309750352,625.13891629,0.00014941,2]
[357677353,1744309753626,155.835793,0.00018,10]
[357677367,1744309789420,250.0,0.00014942,2]
[357677385,1744309832055,-300.0,0.0001504,2]
[357677386,1744309832065,-1958.58196867,0.00015041,2]
[357677389,1744309838084,-376.25192029,0.0001504,2]
[357677390,1744309838094,-500.0,0.0001504,2]
[357677391,1744309838104,-500.0,0.0001504,2]
[357677392,1744309838115,-551.37429097,0.0001504,2]
[357677393,1744309838124,-500.0,0.0001504,2]
[357677395,1744309838134,-500.0,0.0001504,2]
[357677396,1744309838144,-500.0,0.0001504,2]
[357677397,1744309838154,-405.5343815,0.0001504,2]
[357677398,1744309838164,-610.56519122,0.0001504,2]
[357677399,1744309838174,-500.0,0.0001504,2]
[357677400,1744309838184,-500.0,0.0001504,2]
[357677402,1744309838194,-610.56519122,0.0001504,2]
[357677403,1744309838204,-582.9943912,0.0001504,2]
[357677404,1744309838214,-610.56519122,0.0001504,2]
[357677405,1744309838224,-500.0,0.0001504,2]
[357677407,1744309838234,-610.56519122,0.0001504,2]
[357677408,1744309838244,-610.56519122,0.0001504,2]
[357677409,1744309838255,-500.0,0.0001504,2]
[357677411,1744309838264,-610.56519122,0.0001504,2]
[357677412,1744309838274,-610.56519122,0.0001504,2]
[357677413,1744309838286,-500.0,0.0001504,2]
[357677414,1744309838468,-610.56519122,0.0001504,2]
[357677415,1744309838480,-500.0,0.0001504,2]
[357677416,1744309838490,-610.56519122,0.0001504,2]
[357677417,1744309838500,-610.56519122,0.0001504,2]
[357677418,1744309838510,-500.0,0.0001504,2]
[357677419,1744309838519,-610.56519122,0.0001504,2]
[357677420,1744309838529,-610.56519122,0.0001504,2]
[357677421,1744309838540,-610.56519122,0.0001504,2]
[357677422,1744309838550,-610.56519122,0.0001504,2]
[357677423,1744309838560,-610.56519122,0.0001504,2]
[357677424,1744309838570,-610.56519122,0.0001504,2]
[357677425,1744309838580,-610.56519122,0.0001504,2]
[357677426,1744309838590,-610.56519122,0.0001504,2]
[357677427,1744309838599,-610.56519122,0.0001504,2]
[357677428,1744309838609,-610.56519122,0.0001504,2]
[357677429,1744309838619,-610.56519122,0.0001504,2]
[357677430,1744309838629,-610.56519122,0.0001504,2]
[357677431,1744309838639,-610.56519122,0.0001504,2]
[357677432,1744309838648,-610.56519122,0.0001504,2]
[357677433,1744309838658,-610.56519122,0.0001504,2]
[357677434,1744309838668,-610.56519122,0.0001504,2]
[357677435,1744309838678,-610.56519122,0.0001504,2]
[357677436,1744309838687,-610.56519122,0.0001504,2]
[357677437,1744309838697,-610.56519122,0.0001504,2]
[357677438,1744309838707,-610.56519122,0.0001504,2]
[357677439,1744309838716,-610.56519122,0.0001504,2]
[357677440,1744309838726,-610.56519122,0.0001504,2]
[357677441,1744309838735,-610.56519122,0.0001504,2]
[357677442,1744309838745,-610.56519122,0.0001504,2]
[357677443,1744309838755,-610.56519122,0.0001504,2]
[357677444,1744309838765,-610.56519122,0.0001504,2]
[357677445,1744309838775,-610.56519122,0.0001504,2]
[357677446,1744309838785,-610.56519122,0.0001504,2]
[357677447,1744309838795,-610.56519122,0.0001504,2]
[357677448,1744309838805,-610.56519122,0.0001504,2]
[357677449,1744309838815,-610.56519122,0.0001504,2]
[357677450,1744309838824,-610.56519122,0.0001504,2]
[357677451,1744309838834,-610.56519122,0.0001504,2]
[357677452,1744309838844,-610.56519122,0.0001504,2]
[357677453,1744309838853,-610.56519122,0.0001504,2]
[357677454,1744309838863,-610.56519122,0.0001504,2]
[357677455,1744309838873,-610.56519122,0.0001504,2]
[357677456,1744309838883,-610.56519122,0.0001504,2]
[357677457,1744309838892,-610.56519122,0.0001504,2]
[357677458,1744309838902,-610.56519122,0.0001504,2]
[357677459,1744309838912,-610.56519122,0.0001504,2]
[357677460,1744309838922,-610.56519122,0.0001504,2]
[357677461,1744309838932,-70.98507261,0.0001504,2]
[357677466,1744309842195,-539.58011861,0.0001504,2]
[357677467,1744309842206,-610.56519122,0.0001504,2]
[357677468,1744309842216,-610.56519122,0.0001504,2]
[357677469,1744309842226,-610.56519122,0.0001504,2]
[357677470,1744309842236,-610.56519122,0.0001504,2]
[357677471,1744309842246,-152.94454239,0.0001504,2]
[357677567,1744309846142,-457.62064883,0.0001504,2]
[357677568,1744309846152,-610.56519122,0.0001504,2]
[357677569,1744309846162,-109.80455141,0.0001504,2]
[357677570,1744309863742,-180.41019164,0.00015039,2]
[357677571,1744309894623,24900.0,0.00014166,2]
[357677572,1744309907486,1013.0323373,0.00014166,2]
[357677573,1744309933691,250.0,0.0001494,2]
[357677574,1744310077012,250.0,0.00014939,2]
[357677575,1744310104304,-210.90978369,0.00015037,2]
[357677576,1744310145919,1323.24124755,0.00014938,2]
[357677577,1744310220473,250.0,0.00014937,2]
[357677578,1744310222481,10000.0,0.00014166,2]
[357677579,1744310263984,337.0966198,0.00014684,2]
[357677580,1744310281927,252.777979,0.00014658,2]
[357677581,1744310339198,52139.22021742,0.00018,10]
[357677582,1744310343185,250.0,0.00014937,2]
[357677583,1744310343872,-157.93148628,0.00015035,2]
[357677584,1744310351364,1157.83609165,0.00014936,2]
[357677585,1744310486530,250.0,0.00014936,2]
[357677586,1744310554387,-160.0,0.00015034,2]
[357677587,1744310556460,1013.10658015,0.00014935,2]
[357677589,1744310630393,250.0,0.00014934,2]
[357677590,1744310767905,250.0,0.00014933,2]
[357677591,1744310792436,886.46825764,0.00014933,2]
[357677592,1744310793029,-151.0,0.00015027,2]
[357677616,1744310890147,250.0,0.00014933,2]
[357677617,1744310936156,8516.2856075,0.00014625,2]
[357677622,1744311000018,775.65972547,0.00014932,2]
[357677637,1744311032202,-151.0,0.00015024,2]
[357677638,1744311032213,-300.0,0.00015031,2]
[357677639,1744311032223,-8811.01251815,0.00015032,2]
[357677640,1744311032235,-2258.99737925,0.00015032,2]
[357677641,1744311032256,-15131.0598815,0.00015032,2]
[357677642,1744311032266,-453.66604347,0.00015032,2]
[357677643,1744311032277,-500.0,0.00015032,2]
[357677644,1744311032287,-500.0,0.00015032,2]
[357677645,1744311032297,-500.0,0.00015032,2]
[357677646,1744311032307,-500.0,0.00015032,2]
[357677647,1744311032317,-500.0,0.00015032,2]
[357677648,1744311032327,-500.0,0.00015032,2]
[357677649,1744311032337,-500.0,0.00015032,2]
[357677650,1744311032348,-500.0,0.00015032,2]
[357677651,1744311032358,-500.0,0.00015032,2]
[357677652,1744311032368,-500.0,0.00015032,2]
[357677653,1744311032379,-500.0,0.00015032,2]
[357677655,1744311032389,-500.0,0.00015032,2]
[357677657,1744311032400,-500.0,0.00015032,2]
[357677660,1744311032410,-500.0,0.00015032,2]
[357677662,1744311032420,-500.0,0.00015032,2]
[357677664,1744311032431,-500.0,0.00015032,2]
[357677666,1744311032441,-500.0,0.00015032,2]
[357677668,1744311032451,-500.0,0.00015032,2]
[357677670,1744311032461,-500.0,0.00015032,2]
[357677672,1744311032471,-500.0,0.00015032,2]
[357677673,1744311032482,-500.0,0.00015032,2]
[357677674,1744311032492,-500.0,0.00015032,2]
[357677675,1744311032502,-500.0,0.00015032,2]
[357677676,1744311032512,-500.0,0.00015032,2]
[357677678,1744311032522,-474.67265785,0.00015032,2]
[357677681,1744311032533,-500.0,0.00015032,2]
[357677683,1744311032543,-500.0,0.00015032,2]
[357677685,1744311032553,-500.0,0.00015032,2]
[357677687,1744311032564,-500.0,0.00015032,2]
[357677689,1744311032574,-500.0,0.00015032,2]
[357677691,1744311032585,-500.0,0.00015032,2]
[357677694,1744311032595,-500.0,0.00015032,2]
[357677696,1744311032605,-500.0,0.00015032,2]
[357677698,1744311032616,-500.0,0.00015032,2]
[357677700,1744311032626,-500.0,0.00015032,2]
[357677702,1744311032637,-500.0,0.00015032,2]
[357677704,1744311032649,-500.0,0.00015032,2]
[357677706,1744311032659,-500.0,0.00015032,2]
[357677707,1744311032670,-500.0,0.00015032,2]
[357677708,1744311032680,-500.0,0.00015032,2]
[357677709,1744311032690,-500.0,0.00015032,2]
[357677710,1744311032700,-500.0,0.00015032,2]
[357677711,1744311032711,-500.0,0.00015032,2]
[357677712,1744311032721,-500.0,0.00015032,2]
[357677713,1744311032731,-500.0,0.00015032,2]
[357677714,1744311032741,-500.0,0.00015032,2]
[357677715,1744311032752,-500.0,0.00015032,2]
[357677716,1744311032768,-500.0,0.00015032,2]
[357677717,1744311032777,-500.0,0.00015032,2]
[357677718,1744311032787,-500.0,0.00015032,2]
[357677719,1744311032797,-500.0,0.00015032,2]
[357677720,1744311032807,-500.0,0.00015032,2]
[357677721,1744311032817,-500.0,0.00015032,2]
[357677722,1744311032827,-500.0,0.00015032,2]
[357677723,1744311032838,-288.97855988,0.00015032,2]
[357677724,1744311033747,250.0,0.00014932,2]
[357677729,1744311038318,-211.02144012,0.00015032,2]
[357677730,1744311038329,-500.0,0.00015032,2]
[357677731,1744311038338,-500.0,0.00015032,2]
[357677732,1744311038347,-500.0,0.00015032,2]
[357677733,1744311038357,-500.0,0.00015032,2]
[357677734,1744311038367,-15.81612639,0.00015032,2]
[357677735,1744311038378,-484.18387361,0.00015032,2]
[357677736,1744311038388,-500.0,0.00015032,2]
[357677737,1744311038397,-500.0,0.00015032,2]
[357677738,1744311038406,-500.0,0.00015032,2]
[357677739,1744311038416,-500.0,0.00015032,2]
[357677740,1744311038426,-500.0,0.00015032,2]
[357677741,1744311038435,-500.0,0.00015032,2]
[357677742,1744311038444,-500.0,0.00015032,2]
[357677743,1744311038453,-500.0,0.00015032,2]
[357677744,1744311038463,-500.0,0.00015032,2]
[357677745,1744311038472,-500.0,0.00015032,2]
[357677746,1744311038481,-500.0,0.00015032,2]
[357677748,1744311038490,-500.0,0.00015032,2]
[357677749,1744311038499,-500.0,0.00015032,2]
[357677751,1744311038508,-500.0,0.00015032,2]
[357677752,1744311038517,-319.22053921,0.00015032,2]
[357677753,1744311038527,-1400.00000001,0.00015042,2]
[357677754,1744311038536,-500.0,0.00015045,2]
[357677755,1744311038545,-500.0,0.00015319,2]
[357677756,1744311038554,-97.09558722,0.00015593,2]
[357677757,1744311038579,-402.90441278,0.00015593,2]
[357677758,1744311038589,-108.19154894,0.00015593,2]
[357677759,1744311038601,-51.8773763,0.00015593,2]
[357677760,1744311038611,-163.17484406,0.00015855,2]
[357677761,1744311038621,-250.0,0.00015867,2]
[357677762,1744311038630,-129.93182858,0.000159,2]
[357677763,1744311038641,-937.91107545,0.000159,2]
[357677764,1744311038653,-663.23739488,0.000159,2]
[357677765,1744311038665,-6360.54714689,0.000159,2]
[357677766,1744311038676,-1633.28563498,0.000159,2]
[357677781,1744311040372,-1226.04132791,0.000159,2]
[357677782,1744311040429,-810.27166094,0.000159,2]
[357677783,1744311040441,-5877.08491477,0.000159,2]
[357677784,1744311040451,-775.65972541,0.00015955,2]
[357677785,1744311040461,-5000.0,0.00016,2]
[357677786,1744311040470,-200.0,0.00016005,2]
[357677787,1744311040480,-151.0,0.00016005,2]
[357677788,1744311040489,-151.0,0.00016005,2]
[357677789,1744311040499,-151.0,0.00016005,2]
[357677790,1744311040510,-151.0,0.00016005,2]
[357677791,1744311040519,-149.09387814,0.00016005,2]
[357678030,1744311046562,-1.90612186,0.00016005,2]
[357678031,1744311046572,-151.0,0.00016005,2]
[357678032,1744311046582,-151.0,0.00016005,2]
[357678033,1744311046592,-163.17484406,0.00016016,2]
[357678034,1744311046601,-234.4262571,0.000161,2]
[357678035,1744311046612,-307.7678734,0.000161,2]
[357678036,1744311046622,-160.0,0.00016125,2]
[357678037,1744311046631,-160.0,0.00016125,2]
[357678038,1744311046642,-419.64641374,0.00016125,2]
[357678039,1744311046651,-160.0,0.00016125,2]
[357678040,1744311046662,-2565.95094782,0.00016125,2]
[357678041,1744311046674,-9970.77431671,0.00016125,2]
[357678042,1744311046683,-160.0,0.00016125,2]
[357678043,1744311046693,-837.80299543,0.00016125,2]
[357678044,1744311046702,-163.17484406,0.00016177,2]
[357678045,1744311046712,-4000.0,0.000162,2]
[357678046,1744311046722,-152.0,0.00016288,2]
[357678047,1744311046732,-163.17484406,0.00016338,2]
[357678048,1744311046741,-151.0,0.00016393,2]
[357678049,1744311046751,-160.0,0.00016438,3]
[357678050,1744311046761,-10829.35515113,0.00016438,3]
[357678051,1744311078662,-199.9956401,0.00015031,2]
[357678052,1744311080805,-148.35139841,0.00015031,2]
[357678053,1744311080830,-51.64424169,0.00015031,2]
[357678054,1744311084227,-196.88061053,0.00015031,2]
[357678055,1744311105720,-176.5,0.00015031,2]
[357678056,1744311153224,-300.0,0.0001503,2]
[357678057,1744311153249,-74.97514778,0.00015031,2]
[357678058,1744311153276,-4.23879866,0.00015031,2]
[357678059,1744311173030,-154.80629526,0.0001503,2]
[357678060,1744311185502,-166.4509017,0.00015029,2]
[357678061,1744311205857,6330.7513787,0.0001486,2]
[357678062,1744311206812,-133.5490983,0.00015029,2]
[357678063,1744311207007,-67.40414901,0.0001503,2]
[357678064,1744311228172,2837.2764544,0.00014998,2]
[357678065,1744311228761,-223.89299807,0.0001503,2]
[357678068,1744311245248,-53.89655766,0.0001503,2]
[357678069,1744311245272,-246.10344234,0.0001503,2]
[357678070,1744311348387,529.002145,0.00014166,2]
[357678071,1744311392836,-404.15777526,0.00015028,2]
[357678072,1744311394752,-176.5,0.00015028,2]
[357678073,1744311394778,-20.97031494,0.00015028,2]
[357678074,1744311513987,-250.0,0.00015027,2]
[357678076,1744311545643,-224.0,0.00015026,2]
[357678077,1744311561854,382.731022,0.00014166,2]
[357678078,1744311562396,-76.0,0.00015026,2]
[357678079,1744311562422,-84.0,0.00015027,2]
[357678080,1744311622564,660.99479411,0.00014927,2]
[357678082,1744311827849,578.37044482,0.00014924,2]
[357678083,1744311904234,-196.2234246,0.00015022,2]
[357678084,1744312043189,530.60206731,0.00014923,2]
[357678204,1744312143747,-300.0,0.0001502,2]
[357678205,1744312204073,-200.0,0.0001502,2]
[357678257,1744312232324,-100.0,0.0001502,2]
[357678258,1744312232335,-500.0,0.0001502,2]
[357678259,1744312232344,-303.32241297,0.0001502,2]
[357678260,1744312232355,-487.79068094,0.0001502,2]
[357678261,1744312232364,-500.0,0.0001502,2]
[357678262,1744312232374,-500.0,0.0001502,2]
[357678263,1744312232384,-500.0,0.0001502,2]
[357678264,1744312232393,-500.0,0.0001502,2]
[357678265,1744312232403,-500.0,0.0001502,2]
[357678266,1744312232413,-23060.51836595,0.00015021,2]
[357678267,1744312232422,-500.0,0.00015027,2]
[357678268,1744312232432,-500.0,0.00015027,2]
[357678269,1744312232443,-346.71183527,0.00015027,2]
[357678270,1744312232452,-199.9956401,0.00015905,2]
[357678271,1744312232462,-250.0,0.00015905,2]
[357678272,1744312232472,-199.29166671,0.00015905,2]
[357678273,1744312232482,-307.05707778,0.00015925,2]
[357678274,1744312232492,-307.05707776,0.00015937,2]
[357678275,1744312232501,-307.05707776,0.00015949,2]
[357678276,1744312232511,-307.05707776,0.00015961,2]
[357678277,1744312232520,-307.05707776,0.00015973,2]
[357678278,1744312232530,-318.95361338,0.00015999,2]
[357678279,1744312232540,-3700.56076161,0.00016,2]
[357678280,1744312232550,-10083.8409,0.00016004,2]
[357678281,1744312232559,-200.0,0.00016016,2]
[357678282,1744312232569,-151.0,0.00016016,2]
[357678283,1744312232578,-151.0,0.00016016,2]
[357678284,1744312232587,-151.0,0.00016016,2]
[357678285,1744312232598,-151.0,0.00016016,2]
[357678286,1744312232608,-151.0,0.00016016,2]
[357678287,1744312232617,-151.0,0.00016016,2]
[357678288,1744312232627,-151.0,0.00016016,2]
[357678289,1744312232637,-160.0,0.00016024,3]
[357678290,1744312232646,-8768.53383107,0.00016025,2]
[357678291,1744312232666,-487.31355088,0.00016025,2]
[357678313,1744312238752,-375.7512665,0.0001502,2]
[357678314,1744312238762,-500.0,0.0001502,2]
[357678315,1744312238772,-196.88061053,0.0001502,2]
[357678316,1744312238781,-500.0,0.0001502,2]
[357678317,1744312238791,-500.0,0.0001502,2]
[357678318,1744312238800,-500.0,0.0001502,2]
[357678319,1744312238811,-500.0,0.0001502,2]
[357678320,1744312238820,-500.0,0.0001502,2]
[357678321,1744312238830,-500.0,0.0001502,2]
[357678322,1744312238841,-500.0,0.0001502,2]
[357678323,1744312238850,-500.0,0.0001502,2]
[357678324,1744312238860,-500.0,0.0001502,2]
[357678325,1744312238870,-489.84469128,0.0001502,2]
[357678326,1744312238880,-500.0,0.0001502,2]
[357678327,1744312238890,-500.0,0.0001502,2]
[357678328,1744312238900,-500.0,0.0001502,2]
[357678329,1744312238910,-500.0,0.0001502,2]
[357678330,1744312238920,-500.0,0.0001502,2]
[357678331,1744312238930,-500.0,0.0001502,2]
[357678332,1744312238941,-500.0,0.0001502,2]
[357678333,1744312238951,-500.0,0.0001502,2]
[357678334,1744312238962,-151.0,0.00016016,2]
[357678335,1744312238972,-151.0,0.00016016,2]
[357678336,1744312238983,-151.0,0.00016016,2]
[357678337,1744312238994,-139213.28454805,0.00016025,2]
[357678338,1744312239005,-47784.98295716,0.00016025,3]
[357678339,1744312239015,-12536.72526453,0.00016025,3]
[357678340,1744312239025,-837.80299543,0.00016025,3]
[357678341,1744312239036,-83080.01596617,0.00016025,2]
[357678342,1744312239053,-217337.06433769,0.00016025,2]
[357678343,1744312239069,-69582.91969614,0.00016025,2]
[357678344,1744312239079,-622.14645426,0.00016073,2]
[357678345,1744312239090,-500.0,0.00016073,2]
[357678346,1744312239100,-500.0,0.00016073,2]
[357678347,1744312239110,-500.0,0.00016073,2]
[357678348,1744312239119,-500.0,0.00016073,2]
[357678349,1744312239128,-500.0,0.00016073,2]
[357678350,1744312239138,-500.0,0.00016073,2]
[357678351,1744312239153,-502.17434968,0.00016073,2]
[357678352,1744312239163,-500.0,0.00016073,2]
[357678353,1744312239173,-500.0,0.00016073,2]
[357678354,1744312239182,-500.0,0.00016073,2]
[357678355,1744312239193,-500.0,0.00016073,2]
[357678356,1744312239202,-500.0,0.00016073,2]
[357678357,1744312239212,-500.0,0.00016073,2]
[357678358,1744312239223,-534.44279293,0.00016073,2]
[357678359,1744312239233,-500.67474896,0.00016073,2]
[357678360,1744312239244,-500.0,0.00016073,2]
[357678361,1744312239254,-500.0,0.00016073,2]
[357678362,1744312239264,-500.0,0.00016073,2]
[357678363,1744312239274,-602.79187796,0.00016073,2]
[357678364,1744312239284,-500.0,0.00016073,2]
[357678365,1744312239294,-500.0,0.00016073,2]
[357678366,1744312239304,-500.0,0.00016073,2]
[357678367,1744312239314,-160.14307659,0.00016073,2]
[357678368,1744312239324,-280.48755935,0.00016073,2]
[357678369,1744312239334,-500.0,0.00016073,2]
[357678370,1744312239343,-500.0,0.00016073,2]
[357678371,1744312239353,-271.10151731,0.00016073,2]
[357678372,1744312239363,-299.76650564,0.00016073,2]
[357678373,1744312239373,-505.30703472,0.00016073,2]
[357678374,1744312239384,-500.0,0.00016073,2]
[357678375,1744312239393,-393.60741691,0.00016073,2]
[357678376,1744312239403,-500.0,0.00016073,2]
[357678377,1744312239413,-500.54745208,0.00016073,2]
[357678378,1744312239423,-339.73846963,0.00016073,2]
[357678379,1744312239434,-500.0,0.00016073,2]
[357678380,1744312239445,-223.12063974,0.00016073,2]
[357678389,1744312240879,-276.87936026,0.00016073,2]
[357678390,1744312240889,-500.0,0.00016073,2]
[357678391,1744312240899,-500.0,0.00016073,2]
[357678392,1744312240908,-541.69237408,0.00016073,2]
[357678393,1744312240918,-500.0,0.00016073,2]
[357678394,1744312240928,-253.4850018,0.00016073,2]
[357678395,1744312240939,-500.0,0.00016073,2]
[357678396,1744312240949,-500.0,0.00016073,2]
[357678397,1744312240959,-500.0,0.00016073,2]
[357678398,1744312240968,-500.0,0.00016073,2]
[357678399,1744312240978,-500.26298044,0.00016073,2]
[357678400,1744312240988,-5.65422712,0.00016073,2]
[357678420,1744312243580,-494.34577288,0.00016073,2]
[357678421,1744312243589,-500.0,0.00016073,2]
[357678422,1744312243599,-500.0,0.00016073,2]
[357678423,1744312243608,-500.0,0.00016073,2]
[357678424,1744312243618,-504.69515223,0.00016073,2]
[357678425,1744312243628,-500.0,0.00016073,2]
[357678426,1744312243637,-500.0,0.00016073,2]
[357678427,1744312243648,-500.0,0.00016073,2]
[357678428,1744312243659,-500.0,0.00016073,2]
[357678429,1744312243669,-202.69744894,0.00016073,2]
[357678430,1744312243678,-500.66529769,0.00016073,2]
[357678431,1744312243688,-500.0,0.00016073,2]
[357678432,1744312243699,-500.0,0.00016073,2]
[357678433,1744312243708,-500.0,0.00016073,2]
[357678434,1744312243718,-503.23903596,0.00016073,2]
[357678435,1744312243727,-200.0,0.00016073,2]
[357678436,1744312243736,-419.64641374,0.00016101,2]
[357678437,1744312243746,-160.0,0.00016101,2]
[357678438,1744312243756,-12536.72526453,0.00016101,2]
[357678439,1744312243765,-837.80299543,0.00016101,2]
[357678440,1744312243776,-160.0,0.00016103,2]
[357678441,1744312243786,-20485.81052867,0.00016274,2]
[357678442,1744312243795,-360.1490082,0.000163,2]
[357678443,1744312243808,-160.0,0.0001635,2]
[357678444,1744312243824,-160.0,0.0001635,2]
[357678445,1744312243839,-151.0,0.000164,2]
[357678446,1744312243860,-1707.3701134,0.00016438,3]
[357678447,1744312243872,-500.0,0.00016438,2]
[357678448,1744312243882,-500.0,0.00016438,2]
[357678449,1744312243892,-500.0,0.00016438,2]
[357678450,1744312243901,-500.0,0.00016438,2]
[357678451,1744312243911,-500.0,0.00016438,2]
[357678452,1744312243922,-500.0,0.00016438,2]
[357678453,1744312243934,-500.0,0.00016438,2]
[357678454,1744312243945,-689.14,0.00016438,2]
[357678455,1744312243954,-500.0,0.00016438,2]
[357678456,1744312243964,-500.0,0.00016438,2]
[357678457,1744312243974,-509.37,0.00016438,2]
[357678458,1744312243984,-500.0,0.00016438,2]
[357678459,1744312243994,-500.0,0.00016438,2]
[357678460,1744312244004,-500.0,0.00016438,2]
[357678461,1744312244014,-500.0,0.00016438,2]
[357678462,1744312244024,-500.0,0.00016438,2]
[357678463,1744312244033,-999.95,0.00016438,2]
[357678464,1744312244043,-500.0,0.00016438,2]
[357678465,1744312244053,-500.0,0.00016438,2]
[357678466,1744312244062,-500.0,0.00016438,2]
[357678467,1744312244072,-500.0,0.00016438,2]
[357678468,1744312244082,-500.0,0.00016438,2]
[357678469,1744312244092,-373.59215318,0.00016438,2]
[357678470,1744312244102,-1339.23,0.00016438,2]
[357678471,1744312244112,-893.55,0.00016438,2]
[357678472,1744312244121,-500.0,0.00016438,2]
[357678473,1744312244131,-500.0,0.00016438,2]
[357678474,1744312244141,-288.79810102,0.00016438,2]
[357678475,1744312244162,-211.20189898,0.00016438,2]
[357678476,1744312244172,-500.0,0.00016438,2]